Workbook

Sheet Produktionsanlæg
A1: Produktionsanlæg | B1: Enhed | C1: Standard-levetid | D1: Samlet mængde per 31/12-2022 | E1: Samlet mængde per 31/12-2023 | F1: Samlet mængde per 31/12-2024 | G1: Afvigelse 2022-2023 | H1: Afvigelse 2023-2024 | I1: Bemærkninger
A3: Renseanlæg 1 | G3: =IF(D3="",IF(E3>0,"Ny data",IF(E3="","",0)),IF(D3=0,IF(E3=0,0,"Ny data"),(E3-D3)/D3)) ->  | H3: =IF(E3="",IF(F3>0,"Ny data",IF(F3="","",0)),IF(E3=0,IF(F3=0,0,"Ny data"),(F3-E3)/E3)) -> 
A4: Mindre renseanlæg
A5: Mindre renseanlæg < 5.000 PE | B5: PE | C5: 40 | D5: 0 | G5: 0
A6: Renseanlæg >= 5.000 PE, Vandbehandling
A7: Indløb med riste, Konstruktioner | B7: PE | C7: 60 | D7: 60000 | E7: 60000 | F7: 60000 | G7: 0 | H7: 0
A8: Indløb med riste, Mek/EL | B8: PE | C8: 20 | D8: 60000 | E8: 60000 | F8: 60000 | G8: 0 | H8: 0
A9: Indløb med riste, SRO | B9: PE | C9: 10 | D9: 60000 | E9: 60000 | F9: 60000 | G9: 0 | H9: 0
A10: Sand- og fedtfang, Kontruktioner | B10: PE | C10: 60 | D10: 60000 | E10: 60000 | F10: 60000 | G10: 0 | H10: 0
A11: Sand- og fedtfang, Mek/EL | B11: PE | C11: 20 | D11: 60000 | E11: 60000 | F11: 60000 | G11: 0 | H11: 0
A12: Sand- og fedtfang, SRO | B12: PE | C12: 10 | D12: 60000 | E12: 60000 | F12: 60000 | G12: 0 | H12: 0
A13: Forklaring, Konstruktioner | B13: PE | C13: 60 | D13: 60000 | E13: 60000 | F13: 60000 | G13: 0 | H13: 0
A14: Forklaring, Mek/EL | B14: PE | C14: 20 | D14: 60000 | E14: 60000 | F14: 60000 | G14: 0 | H14: 0
A15: Forklaring, SRO | B15: PE | C15: 10 | D15: 60000 | E15: 60000 | F15: 60000 | G15: 0 | H15: 0
A16: Beluftningstanke, Konstruktioner | B16: PE | C16: 60 | D16: 60000 | E16: 60000 | F16: 60000 | G16: 0 | H16: 0
A17: Beluftningstanke, Mek/EL | B17: PE | C17: 20 | D17: 60000 | E17: 60000 | F17: 60000 | G17: 0 | H17: 0
A18: Beluftningstanke, SRO | B18: PE | C18: 10 | D18: 60000 | E18: 60000 | F18: 60000 | G18: 0 | H18: 0
A19: Efterklaringstanke, Konstruktioner | B19: PE | C19: 60 | D19: 60000 | E19: 60000 | F19: 60000 | G19: 0 | H19: 0
A20: Efterklaringstanke, Mek/El | B20: PE | C20: 20 | D20: 60000 | E20: 60000 | F20: 60000 | G20: 0 | H20: 0
A21: Efterklaringstanke, SRO | B21: PE | C21: 10 | D21: 60000 | E21: 60000 | F21: 60000 | G21: 0 | H21: 0
A22: Efterbehandlingsanlæg (sandfilter), Konstruktioner | B22: PE | C22: 60 | D22: 0 | G22: 0
A23: Efterbehandlingsanlæg (sandfilter), Mek/EL | B23: PE | C23: 20 | D23: 0 | G23: 0
A24: Efterbehandlingsanlæg (sandfilter), SRO | B24: PE | C24: 10 | D24: 0 | G24: 0
A25: Renseanlæg >= 5.000 PE, Slambehandling
A26: Forafvanding, slam, Konstruktion | B26: PE | C26: 60 | D26: 60000 | E26: 60000 | F26: 60000 | G26: 0 | H26: 0
A27: Forafvanding, slam, Mek/EL | B27: PE | C27: 20 | D27: 60000 | E27: 60000 | F27: 60000 | G27: 0 | H27: 0
A28: Forafvanding, slam, SRO | B28: PE | C28: 10 | D28: 60000 | E28: 60000 | F28: 60000 | G28: 0 | H28: 0
A29: Rådnetanke, slam, Konstruktioner | B29: PE | C29: 60 | D29: 60000 | E29: 60000 | F29: 60000 | G29: 0 | H29: 0
A30: Rådnetanke, slam, Mek/EL | B30: PE | C30: 20 | D30: 60000 | E30: 60000 | F30: 60000 | G30: 0 | H30: 0
A31: Rådnetanke, slam, SRO | B31: PE | C31: 10 | D31: 60000 | E31: 60000 | F31: 60000 | G31: 0 | H31: 0
A32: Gasdisponering, Konstruktioner | B32: PE | C32: 60 | D32: 60000 | E32: 60000 | F32: 60000 | G32: 0 | H32: 0
A33: Gasdisponering, Mek/EL | B33: PE | C33: 20 | D33: 60000 | E33: 60000 | F33: 60000 | G33: 0 | H33: 0
A34: Gasdisponering, SRO | B34: PE | C34: 10 | D34: 60000 | E34: 60000 | F34: 60000 | G34: 0 | H34: 0
A35: Gasdisponering - elproduktionsanlæg, Konstruktioner | B35: PE | C35: 60 | D35: 0 | G35: 0
A36: Gasdisponering - elproduktionsanlæg, Mek/EL | B36: PE | C36: 20 | D36: 0 | G36: 0
A37: Gasdisponering - elproduktionsanlæg, SRO | B37: PE | C37: 10 | D37: 0 | G37: 0
A38: Gasrensning - Aktivt kulfilter | B38: m3/t | C38: 15 | D38: 0 | G38: 0
A39: Gasrensning - Biologisk skrubber | B39: m3/t | C39: 15 | D39: 0 | G39: 0
A40: Opgraderingsanlæg - Membran | B40: m3/t | C40: 15 | D40: 0 | G40: 0
A41: Varmeproduktionsanlæg | B41: m3/t | C41: 15 | D41: 60 | E41: 60 | F41: 60 | G41: 0 | H41: 0
A42: Slutafvanding, slam - lavteknologisk (slambede), Konstruktioner | B42: PE | C42: 60 | D42: 0 | G42: 0
A43: Slutafvanding, slam - lavteknologisk (slambede), Mek/EL | B43: PE | C43: 20 | D43: 0 | G43: 0
A44: Slutafvanding, slam - lavteknologisk (slambede), SRO | B44: PE | C44: 10 | D44: 0 | G44: 0
A45: Slutafvanding, slam - højteknologisk (centrifuger), Konstruktioner | B45: PE | C45: 60 | D45: 60000 | E45: 60000 | F45: 60000 | G45: 0 | H45: 0
A46: Slutafvanding, slam - højteknologisk (centrifuger), Mek/El | B46: PE | C46: 20 | D46: 60000 | E46: 60000 | F46: 60000 | G46: 0 | H46: 0
A47: Slutafvanding, slam - højteknologisk (centrifuger), SRO | B47: PE | C47: 10 | D47: 60000 | E47: 60000 | F47: 60000 | G47: 0 | H47: 0
A48: Renseanlæg >= 5.000 PE, Slamdisponering
A49: Slutdisponering, slam - lavteknologisk (slammineralisering), Konstruktioner | B49: PE | C49: 60 | D49: 0 | G49: 0
A50: Slutdisponering, slam - lavteknologisk (slammineralisering), Mek/EL | B50: PE | C50: 20 | D50: 0 | G50: 0
A51: Slutdisponering, slam - lavteknologisk (slammineralisering), SRO | B51: PE | C51: 10 | D51: 0 | G51: 0
A52: Slutdisponering, slam - højteknologisk (slamtørring), Konstruktioner | B52: PE | C52: 60 | D52: 0 | G52: 0
A53: Slutdisponering, slam - højteknologisk (slamtørring), Mek/EL | B53: PE | C53: 20 | D53: 0 | G53: 0
A54: Slutdisponering, slam - højteknologisk (slamtørring), SRO | B54: PE | C54: 10 | D54: 0 | G54: 0
A55: Slutdisponering, slam - højteknologisk (slamtørring og -forbrænding), Konstruktioner | B55: PE | C55: 60 | D55: 0 | G55: 0
A56: Slutdisponering, slam - højteknologisk (slamtørring og -forbrænding), Mek/EL | B56: PE | C56: 20 | D56: 0 | G56: 0
A57: Slutdisponering, slam - højteknologisk (slamtørring og -forbrænding), SRO | B57: PE | C57: 10 | D57: 0 | G57: 0
A58: Renseanlæg 2
A59: Mindre renseanlæg
A60: Mindre renseanlæg < 5.000 PE | B60: PE | C60: 40 | D60: 0 | G60: 0
A61: Renseanlæg >= 5.000 PE, Vandbehandling
A62: Indløb med riste, Konstruktioner | B62: PE | C62: 60 | D62: 28000 | E62: 28000 | F62: 28000 | G62: 0 | H62: 0
A63: Indløb med riste, Mek/EL | B63: PE | C63: 20 | D63: 28000 | E63: 28000 | F63: 28000 | G63: 0 | H63: 0
A64: Indløb med riste, SRO | B64: PE | C64: 10 | D64: 28000 | E64: 28000 | F64: 28000 | G64: 0 | H64: 0
A65: Sand- og fedtfang, Kontruktioner | B65: PE | C65: 60 | D65: 28000 | E65: 28000 | F65: 28000 | G65: 0 | H65: 0
A66: Sand- og fedtfang, Mek/EL | B66: PE | C66: 20 | D66: 28000 | E66: 28000 | F66: 28000 | G66: 0 | H66: 0
A67: Sand- og fedtfang, SRO | B67: PE | C67: 10 | D67: 28000 | E67: 28000 | F67: 28000 | G67: =IF(D67="",IF(E67>0,"Ny data",IF(E67="","",0)),IF(D67=0,IF(E67=0,0,"Ny data"),(E67-D67)/D67)) -> 0 | H67: =IF(E67="",IF(F67>0,"Ny data",IF(F67="","",0)),IF(E67=0,IF(F67=0,0,"Ny data"),(F67-E67)/E67)) -> 0
A68: Forklaring, Konstruktioner | B68: PE | C68: 60 | D68: 0 | G68: 0
A69: Forklaring, Mek/EL | B69: PE | C69: 20 | D69: 0 | G69: 0
A70: Forklaring, SRO | B70: PE | C70: 10 | D70: 0 | G70: 0
A71: Beluftningstanke, Konstruktioner | B71: PE | C71: 60 | D71: 28000 | E71: 28000 | F71: 28000 | G71: 0 | H71: 0
A72: Beluftningstanke, Mek/EL | B72: PE | C72: 20 | D72: 28000 | E72: 28000 | F72: 28000 | G72: 0 | H72: 0
A73: Beluftningstanke, SRO | B73: PE | C73: 10 | D73: 28000 | E73: 28000 | F73: 28000 | G73: 0 | H73: 0
A74: Efterklaringstanke, Konstruktioner | B74: PE | C74: 60 | D74: 28000 | E74: 28000 | F74: 28000 | G74: 0 | H74: 0
A75: Efterklaringstanke, Mek/El | B75: PE | C75: 20 | D75: 28000 | E75: 28000 | F75: 28000 | G75: 0 | H75: 0
A76: Efterklaringstanke, SRO | B76: PE | C76: 10 | D76: 28000 | E76: 28000 | F76: 28000 | G76: 0 | H76: 0
A77: Efterbehandlingsanlæg (sandfilter), Konstruktioner | B77: PE | C77: 60 | D77: 0 | G77: 0
A78: Efterbehandlingsanlæg (sandfilter), Mek/EL | B78: PE | C78: 20 | D78: 0 | G78: 0
A79: Efterbehandlingsanlæg (sandfilter), SRO | B79: PE | C79: 10 | D79: 0 | G79: 0
A80: Renseanlæg >= 5.000 PE, Slambehandling
A81: Forafvanding, slam, Konstruktion | B81: PE | C81: 60 | D81: 0 | G81: 0
A82: Forafvanding, slam, Mek/EL | B82: PE | C82: 20 | D82: 0 | G82: 0
A83: Forafvanding, slam, SRO | B83: PE | C83: 10 | D83: 0 | G83: 0
A84: Rådnetanke, slam, Konstruktioner | B84: PE | C84: 60 | D84: 0 | G84: 0
A85: Rådnetanke, slam, Mek/EL | B85: PE | C85: 20 | D85: 0 | G85: 0
A86: Rådnetanke, slam, SRO | B86: PE | C86: 10 | D86: 0 | G86: 0
A87: Gasdisponering, Konstruktioner | B87: PE | C87: 60 | D87: 0 | G87: 0
A88: Gasdisponering, Mek/EL | B88: PE | C88: 20 | D88: 0 | G88: 0
A89: Gasdisponering, SRO | B89: PE | C89: 10 | D89: 0 | G89: 0
A90: Gasdisponering - elproduktionsanlæg, Konstruktioner | B90: PE | C90: 60 | D90: 0 | G90: 0
A91: Gasdisponering - elproduktionsanlæg, Mek/EL | B91: PE | C91: 20 | D91: 0 | G91: 0
A92: Gasdisponering - elproduktionsanlæg, SRO | B92: PE | C92: 10 | D92: 0 | G92: 0
A93: Gasrensning - Aktivt kulfilter | B93: m3/t | C93: 15 | D93: 0 | G93: 0
A94: Gasrensning - Biologisk skrubber | B94: m3/t | C94: 15 | D94: 0 | G94: 0
A95: Opgraderingsanlæg - Membran | B95: m3/t | C95: 15 | D95: 0 | G95: 0
A96: Varmeproduktionsanlæg | B96: m3/t | C96: 15 | D96: 0 | G96: 0
A97: Slutafvanding, slam - lavteknologisk (slambede), Konstruktioner | B97: PE | C97: 60 | D97: 0 | G97: 0
A98: Slutafvanding, slam - lavteknologisk (slambede), Mek/EL | B98: PE | C98: 20 | D98: 0 | G98: 0
A99: Slutafvanding, slam - lavteknologisk (slambede), SRO | B99: PE | C99: 10 | D99: 0 | G99: 0
A100: Slutafvanding, slam - højteknologisk (centrifuger), Konstruktioner | B100: PE | C100: 60 | D100: 0 | G100: 0
A101: Slutafvanding, slam - højteknologisk (centrifuger), Mek/El | B101: PE | C101: 20 | D101: 0 | G101: 0
A102: Slutafvanding, slam - højteknologisk (centrifuger), SRO | B102: PE | C102: 10 | D102: 0 | G102: 0
A103: Renseanlæg >= 5.000 PE, Slamdisponering
A104: Slutdisponering, slam - lavteknologisk (slammineralisering), Konstruktioner | B104: PE | C104: 60 | D104: 0 | G104: 0
A105: Slutdisponering, slam - lavteknologisk (slammineralisering), Mek/EL | B105: PE | C105: 20 | D105: 0 | G105: 0
A106: Slutdisponering, slam - lavteknologisk (slammineralisering), SRO | B106: PE | C106: 10 | D106: 0 | G106: 0
A107: Slutdisponering, slam - højteknologisk (slamtørring), Konstruktioner | B107: PE | C107: 60 | D107: 0 | G107: 0
A108: Slutdisponering, slam - højteknologisk (slamtørring), Mek/EL | B108: PE | C108: 20 | D108: 0 | G108: 0
A109: Slutdisponering, slam - højteknologisk (slamtørring), SRO | B109: PE | C109: 10 | D109: 0 | G109: 0
A110: Slutdisponering, slam - højteknologisk (slamtørring og -forbrænding), Konstruktioner | B110: PE | C110: 60 | D110: 0 | G110: 0
A111: Slutdisponering, slam - højteknologisk (slamtørring og -forbrænding), Mek/EL | B111: PE | C111: 20 | D111: 0 | G111: 0
A112: Slutdisponering, slam - højteknologisk (slamtørring og -forbrænding), SRO | B112: PE | C112: 10 | D112: 0 | G112: 0
A113: Renseanlæg 3
A114: Mindre renseanlæg
A115: Mindre renseanlæg < 5.000 PE | B115: PE | C115: 40 | D115: 0 | G115: 0
A116: Renseanlæg >= 5.000 PE, Vandbehandling
A117: Indløb med riste, Konstruktioner | B117: PE | C117: 60 | D117: 5000 | E117: 5000 | F117: 5000 | G117: 0 | H117: 0
A118: Indløb med riste, Mek/EL | B118: PE | C118: 20 | D118: 5000 | E118: 5000 | F118: 5000 | G118: 0 | H118: 0
A119: Indløb med riste, SRO | B119: PE | C119: 10 | D119: 5000 | E119: 5000 | F119: 5000 | G119: 0 | H119: 0
A120: Sand- og fedtfang, Kontruktioner | B120: PE | C120: 60 | D120: 5000 | E120: 5000 | F120: 5000 | G120: 0 | H120: 0
A121: Sand- og fedtfang, Mek/EL | B121: PE | C121: 20 | D121: 5000 | E121: 5000 | F121: 5000 | G121: 0 | H121: 0
A122: Sand- og fedtfang, SRO | B122: PE | C122: 10 | D122: 5000 | E122: 5000 | F122: 5000 | G122: 0 | H122: 0
A123: Forklaring, Konstruktioner | B123: PE | C123: 60 | D123: 0 | G123: 0
A124: Forklaring, Mek/EL | B124: PE | C124: 20 | D124: 0 | G124: 0
A125: Forklaring, SRO | B125: PE | C125: 10 | D125: 0 | G125: 0
A126: Beluftningstanke, Konstruktioner | B126: PE | C126: 60 | D126: 5000 | E126: 5000 | F126: 5000 | G126: 0 | H126: 0
A127: Beluftningstanke, Mek/EL | B127: PE | C127: 20 | D127: 5000 | E127: 5000 | F127: 5000 | G127: 0 | H127: 0
A128: Beluftningstanke, SRO | B128: PE | C128: 10 | D128: 5000 | E128: 5000 | F128: 5000 | G128: 0 | H128: 0
A129: Efterklaringstanke, Konstruktioner | B129: PE | C129: 60 | D129: 5000 | E129: 5000 | F129: 5000 | G129: 0 | H129: 0
A130: Efterklaringstanke, Mek/El | B130: PE | C130: 20 | D130: 5000 | E130: 5000 | F130: 5000 | G130: 0 | H130: 0
A131: Efterklaringstanke, SRO | B131: PE | C131: 10 | D131: 5000 | E131: 5000 | F131: 5000 | G131: =IF(D131="",IF(E131>0,"Ny data",IF(E131="","",0)),IF(D131=0,IF(E131=0,0,"Ny data"),(E131-D131)/D131)) -> 0 | H131: =IF(E131="",IF(F131>0,"Ny data",IF(F131="","",0)),IF(E131=0,IF(F131=0,0,"Ny data"),(F131-E131)/E131)) -> 0
A132: Efterbehandlingsanlæg (sandfilter), Konstruktioner | B132: PE | C132: 60 | D132: 0 | G132: 0
A133: Efterbehandlingsanlæg (sandfilter), Mek/EL | B133: PE | C133: 20 | D133: 0 | G133: 0
A134: Efterbehandlingsanlæg (sandfilter), SRO | B134: PE | C134: 10 | D134: 0 | G134: 0
A135: Renseanlæg >= 5.000 PE, Slambehandling
A136: Forafvanding, slam, Konstruktion | B136: PE | C136: 60 | D136: 0 | G136: 0
A137: Forafvanding, slam, Mek/EL | B137: PE | C137: 20 | D137: 0 | G137: 0
A138: Forafvanding, slam, SRO | B138: PE | C138: 10 | D138: 0 | G138: 0
A139: Rådnetanke, slam, Konstruktioner | B139: PE | C139: 60 | D139: 0 | G139: 0
A140: Rådnetanke, slam, Mek/EL | B140: PE | C140: 20 | D140: 0 | G140: 0
A141: Rådnetanke, slam, SRO | B141: PE | C141: 10 | D141: 0 | G141: 0
A142: Gasdisponering, Konstruktioner | B142: PE | C142: 60 | D142: 0 | G142: 0
A143: Gasdisponering, Mek/EL | B143: PE | C143: 20 | D143: 0 | G143: 0
A144: Gasdisponering, SRO | B144: PE | C144: 10 | D144: 0 | G144: 0
A145: Gasdisponering - elproduktionsanlæg, Konstruktioner | B145: PE | C145: 60 | D145: 0 | G145: 0
A146: Gasdisponering - elproduktionsanlæg, Mek/EL | B146: PE | C146: 20 | D146: 0 | G146: 0
A147: Gasdisponering - elproduktionsanlæg, SRO | B147: PE | C147: 10 | D147: 0 | G147: 0
A148: Gasrensning - Aktivt kulfilter | B148: m3/t | C148: 15 | D148: 0 | G148: 0
A149: Gasrensning - Biologisk skrubber | B149: m3/t | C149: 15 | D149: 0 | G149: 0
A150: Opgraderingsanlæg - Membran | B150: m3/t | C150: 15 | D150: 0 | G150: 0
A151: Varmeproduktionsanlæg | B151: m3/t | C151: 15 | D151: 0 | G151: 0
A152: Slutafvanding, slam - lavteknologisk (slambede), Konstruktioner | B152: PE | C152: 60 | D152: 0 | G152: 0
A153: Slutafvanding, slam - lavteknologisk (slambede), Mek/EL | B153: PE | C153: 20 | D153: 0 | G153: 0
A154: Slutafvanding, slam - lavteknologisk (slambede), SRO | B154: PE | C154: 10 | D154: 0 | G154: 0
A155: Slutafvanding, slam - højteknologisk (centrifuger), Konstruktioner | B155: PE | C155: 60 | D155: 0 | G155: 0
A156: Slutafvanding, slam - højteknologisk (centrifuger), Mek/El | B156: PE | C156: 20 | D156: 0 | G156: 0
A157: Slutafvanding, slam - højteknologisk (centrifuger), SRO | B157: PE | C157: 10 | D157: 0 | G157: 0
A158: Renseanlæg >= 5.000 PE, Slamdisponering
A159: Slutdisponering, slam - lavteknologisk (slammineralisering), Konstruktioner | B159: PE | C159: 60 | D159: 0 | G159: 0
A160: Slutdisponering, slam - lavteknologisk (slammineralisering), Mek/EL | B160: PE | C160: 20 | D160: 0 | G160: 0
A161: Slutdisponering, slam - lavteknologisk (slammineralisering), SRO | B161: PE | C161: 10 | D161: 0 | G161: 0
A162: Slutdisponering, slam - højteknologisk (slamtørring), Konstruktioner | B162: PE | C162: 60 | D162: 0 | G162: 0
A163: Slutdisponering, slam - højteknologisk (slamtørring), Mek/EL | B163: PE | C163: 20 | D163: 0 | G163: 0
A164: Slutdisponering, slam - højteknologisk (slamtørring), SRO | B164: PE | C164: 10 | D164: 0 | G164: 0
A165: Slutdisponering, slam - højteknologisk (slamtørring og -forbrænding), Konstruktioner | B165: PE | C165: 60 | D165: 0 | G165: 0
A166: Slutdisponering, slam - højteknologisk (slamtørring og -forbrænding), Mek/EL | B166: PE | C166: 20 | D166: 0 | G166: 0
A167: Slutdisponering, slam - højteknologisk (slamtørring og -forbrænding), SRO | B167: PE | C167: 10 | D167: 0 | G167: 0
A168: Renseanlæg 4
A169: Mindre renseanlæg
A170: Mindre renseanlæg < 5.000 PE | B170: PE | C170: 40 | D170: 0 | G170: 0
A171: Renseanlæg >= 5.000 PE, Vandbehandling
A172: Indløb med riste, Konstruktioner | B172: PE | C172: 60 | D172: 0 | G172: 0
A173: Indløb med riste, Mek/EL | B173: PE | C173: 20 | D173: 0 | G173: 0
A174: Indløb med riste, SRO | B174: PE | C174: 10 | D174: 0 | G174: 0
A175: Sand- og fedtfang, Kontruktioner | B175: PE | C175: 60 | D175: 0 | G175: 0
A176: Sand- og fedtfang, Mek/EL | B176: PE | C176: 20 | D176: 0 | G176: 0
A177: Sand- og fedtfang, SRO | B177: PE | C177: 10 | D177: 0 | G177: 0
A178: Forklaring, Konstruktioner | B178: PE | C178: 60 | D178: 0 | G178: 0
A179: Forklaring, Mek/EL | B179: PE | C179: 20 | D179: 0 | G179: 0
A180: Forklaring, SRO | B180: PE | C180: 10 | D180: 0 | G180: 0
A181: Beluftningstanke, Konstruktioner | B181: PE | C181: 60 | D181: 0 | G181: 0
A182: Beluftningstanke, Mek/EL | B182: PE | C182: 20 | D182: 0 | G182: 0
A183: Beluftningstanke, SRO | B183: PE | C183: 10 | D183: 0 | G183: 0
A184: Efterklaringstanke, Konstruktioner | B184: PE | C184: 60 | D184: 0 | G184: 0
A185: Efterklaringstanke, Mek/El | B185: PE | C185: 20 | D185: 0 | G185: 0
A186: Efterklaringstanke, SRO | B186: PE | C186: 10 | D186: 0 | G186: 0
A187: Efterbehandlingsanlæg (sandfilter), Konstruktioner | B187: PE | C187: 60 | D187: 0 | G187: 0
A188: Efterbehandlingsanlæg (sandfilter), Mek/EL | B188: PE | C188: 20 | D188: 0 | G188: 0
A189: Efterbehandlingsanlæg (sandfilter), SRO | B189: PE | C189: 10 | D189: 0 | G189: 0
A190: Renseanlæg >= 5.000 PE, Slambehandling
A191: Forafvanding, slam, Konstruktion | B191: PE | C191: 60 | D191: 0 | G191: 0
A192: Forafvanding, slam, Mek/EL | B192: PE | C192: 20 | D192: 0 | G192: 0
A193: Forafvanding, slam, SRO | B193: PE | C193: 10 | D193: 0 | G193: 0
A194: Rådnetanke, slam, Konstruktioner | B194: PE | C194: 60 | D194: 0 | G194: 0
A195: Rådnetanke, slam, Mek/EL | B195: PE | C195: 20 | D195: 0 | G195: =IF(D195="",IF(E195>0,"Ny data",IF(E195="","",0)),IF(D195=0,IF(E195=0,0,"Ny data"),(E195-D195)/D195)) -> 0 | H195: =IF(E195="",IF(F195>0,"Ny data",IF(F195="","",0)),IF(E195=0,IF(F195=0,0,"Ny data"),(F195-E195)/E195)) -> 
A196: Rådnetanke, slam, SRO | B196: PE | C196: 10 | D196: 0 | G196: 0
A197: Gasdisponering, Konstruktioner | B197: PE | C197: 60 | D197: 0 | G197: 0
A198: Gasdisponering, Mek/EL | B198: PE | C198: 20 | D198: 0 | G198: 0
A199: Gasdisponering, SRO | B199: PE | C199: 10 | D199: 0 | G199: 0
A200: Gasdisponering - elproduktionsanlæg, Konstruktioner | B200: PE | C200: 60 | D200: 0 | G200: 0
A201: Gasdisponering - elproduktionsanlæg, Mek/EL | B201: PE | C201: 20 | D201: 0 | G201: 0
... 351 more rows

Sheet Distributionsanlæg
A1: Distributionsanlæg | B1: Enhed | C1: Standard-levetid | D1: Samlet mængde per 31/12-2022 | E1: Samlet mængde per 31/12-2023 | F1: Samlet mængde per 31/12-2024 | G1: Afvigelse 2022-2023 | H1: Afvigelse 2023-2024 | I1: Bemærkninger
A3: Ledningsnet - Land | G3: =IF(D3="",IF(E3>0,"Ny data",IF(E3="","",0)),IF(D3=0,IF(E3=0,0,"Ny data"),(E3-D3)/D3)) ->  | H3: =IF(E3="",IF(F3>0,"Ny data",IF(F3="","",0)),IF(E3=0,IF(F3=0,0,"Ny data"),(F3-E3)/E3)) -> 
A4: Ledningsnet ≤ Ø 200 mm | B4: meter | C4: 75 | D4: 258215.71 | E4: =58709.21+111.56+11750.91+2910.21+151063.31+4720*7 -> 257585.2 | F4: =59784.1+37.55+121563.22+11750.91+2910.21+29564.47+1091+F61*7 -> 259741.46 | G4: -0.00244179566 | H4: 0.00837105548
A5: Ø 200 mm < Ledningsnet ≤ Ø 500 mm | B5: meter | C5: 75 | D5: 62488.8443 | E5: =49686.63+2111.94+10903.79 -> 62702.36 | F5: =49581.68+11059.46+2113.25 -> 62754.39 | G5: 0.00341686108 | H5: 0.0008297933284
A6: Ø 500 mm < Ledningsnet ≤ Ø 800 mm | B6: meter | C6: 75 | D6: 16233.4368 | E6: =16224.29+14.47 -> 16238.76 | F6: =16287.367+14.47 -> 16301.837 | G6: 0.0003279157744 | H6: 0.003884348312
A7: Ø 800 mm < Ledningsnet ≤ Ø 1000 mm | B7: meter | C7: 75 | D7: 3638.1033 | E7: =1484.48+2153.62 -> 3638.1 | F7: =1774+2153.62 -> 3927.62 | G7: -9.070660528e-07 | H7: 0.07958000055
A8: Ø 1000 mm < Ledningsnet ≤ Ø 1200 mm | B8: meter | C8: 75 | D8: 1141.2823 | E8: 1139.3 | F8: =1139.3 -> 1139.3 | G8: -0.001736905935 | H8: 0
A9: Ø 1200 mm < Ledningsnet ≤ Ø 1600 mm | B9: meter | C9: 75 | D9: 196.5741 | E9: 200.39 | F9: 200.39 | G9: 0.01941201817 | H9: 0
A10: Ledningsnet > Ø 1600 mm (rørbassiner og transportledninger) | B10: meter | C10: 75 | D10: 407.72 | E10: 407.72 | F10: 407.72 | G10: 0 | H10: 0
A11: Strømpeforing ≤ Ø 200 mm | B11: meter | C11: 50 | D11: =5828.67+720.55 -> 6549.22 | E11: =5933.81+720.55 -> 6654.36 | F11: =5955.61+720.55 -> 6676.16 | G11: 0.01605382015 | H11: 0.003276047584
A12: Strømpeforing Ø 200 mm < Ledningsnet ≤ Ø 500 mm | B12: meter | C12: 50 | D12: =6603.23+394.71 -> 6997.94 | E12: 6922.64 | F12: =6778.78+394.71 -> 7173.49 | G12: -0.01076030946 | H12: 0.03623617579
A13: Strømpeforing Ø 500 mm < Ledningsnet ≤ Ø 800 mm | B13: meter | C13: 50 | D13: 923 | E13: 987.9 | F13: 987.9 | G13: 0.07031419285 | H13: 0
A14: Strømpeforing Ø 800 mm < Ledningsnet ≤ Ø 1000 mm | B14: meter | C14: 50 | D14: 64 | E14: 64.47 | F14: 62.6 | G14: 0.00734375 | H14: -0.0290057391
A15: Strømpeforing Ø 1000 mm < Ledningsnet ≤ Ø 1200 mm | B15: meter | C15: 50 | D15: 0 | E15: 0 | F15: 0 | G15: 0 | H15: 0
A16: Strømpeforing Ø 1200 mm < Ledningsnet ≤ Ø 1600 mm | B16: meter | C16: 50 | D16: 0 | E16: 0 | F16: 0 | G16: 0 | H16: 0
A17: Ledningsnet - By
A18: Ledningsnet ≤ Ø 200 mm | B18: meter | C18: 75 | D18: 187990.8259 | E18: =113616+848.46+8640.06+118.12+9287*7 -> 188231.64 | F18: =114498.23+362.41+8533.44+F64*7 -> 194892.08 | G18: 0.001280988574 | H18: 0.0353842744
A19: Ø 200 mm < Ledningsnet ≤ Ø 500 mm | B19: meter | C19: 75 | D19: 93075 | E19: =91546.94+1332.69+394.71 -> 93274.34 | F19: =92806.34+1332.69 -> 94139.03 | G19: 0.002141713672 | H19: 0.009270395266
A20: Ø 500 mm < Ledningsnet ≤ Ø 800 mm | B20: meter | C20: 75 | D20: 22577 | E20: =22373.42+465.85 -> 22839.27 | F20: =22353.15+465.85 -> 22819 | G20: 0.01161668955 | H20: -0.0008875064746
A21: Ø 800 mm < Ledningsnet ≤ Ø 1000 mm | B21: meter | C21: 75 | D21: 6797 | E21: =6375.56+421.76 -> 6797.32 | F21: =6524.43+421.76 -> 6946.19 | G21: 4.707959394e-05 | H21: 0.02190127874
A22: Ø 1000 mm < Ledningsnet ≤ Ø 1200 mm | B22: meter | C22: 75 | D22: 2113 | E22: =2196.52 -> 2196.52 | F22: =2196.52 -> 2196.52 | G22: 0.03952673923 | H22: 0
A23: Ø 1200 mm < Ledningsnet ≤ Ø 1600 mm | B23: meter | C23: 75 | D23: 2884 | E23: 2873.69 | F23: =2873.69 -> 2873.69 | G23: -0.003574895978 | H23: 0
A24: Ledningsnet > Ø 1600 mm (rørbassiner og transportledninger) | B24: meter | C24: 75 | D24: 52 | E24: 52.08 | F24: 52.08 | G24: 0.001538461538 | H24: 0
A25: Strømpeforing ≤ Ø 200 mm | B25: meter | C25: 50 | D25: 3102.8227 | E25: 3677.01 | F25: 3676.94 | G25: 0.1850532098 | H25: -1.903720686e-05
A26: Strømpeforing Ø 200 mm < Ledningsnet ≤ Ø 500 mm | B26: meter | C26: 50 | D26: 7153.2621 | E26: 8174.67 | F26: 8272.58 | G26: 0.142789106 | H26: 0.01197724189
A27: Strømpeforing Ø 500 mm < Ledningsnet ≤ Ø 800 mm | B27: meter | C27: 50 | D27: 3622.9549 | E27: 3631.81 | F27: 3631.89 | G27: 0.002444165121 | H27: 2.202758404e-05
A28: Strømpeforing Ø 800 mm < Ledningsnet ≤ Ø 1000 mm | B28: meter | C28: 50 | D28: 115.2979 | E28: 115.3 | F28: 117.47 | G28: 1.821368819e-05 | H28: 0.01882046834
A29: Strømpeforing Ø 1000 mm < Ledningsnet ≤ Ø 1200 mm | B29: meter | C29: 50 | D29: 0 | E29: 0 | F29: 0 | G29: 0 | H29: 0
A30: Strømpeforing Ø 1200 mm < Ledningsnet ≤ Ø 1600 mm | B30: meter | C30: 50 | D30: 0 | E30: 0 | F30: 0 | G30: 0 | H30: 0
A31: Ledningsnet - City
A32: Ledningsnet ≤ Ø 200 mm | B32: meter | C32: 75 | D32: 20430.77 | E32: =5041.21+6.5+343.94+2053*7 -> 19762.65 | F32: =4996.87+6.5+343.94+F67*7 -> 19718.31 | G32: -0.0327016554 | H32: -0.002243626234
A33: Ø 200 mm < Ledningsnet ≤ Ø 500 mm | B33: meter | C33: 75 | D33: 8569 | E33: =8726.5+11.93 -> 8738.43 | F33: =8716.65+11.93 -> 8728.58 | G33: 0.01977243552 | H33: -0.001127204772
A34: Ø 500 mm < Ledningsnet ≤ Ø 800 mm | B34: meter | C34: 75 | D34: 2449 | E34: =2053.36+370.56 -> 2423.92 | F34: =2053.22+370.56 -> 2423.78 | G34: -0.01024091466 | H34: -5.775768177e-05
A35: Ø 800 mm < Ledningsnet ≤ Ø 1000 mm | B35: meter | C35: 75 | D35: 406 | E35: =405.5 -> 405.5 | F35: =405.5 -> 405.5 | G35: -0.001231527094 | H35: 0
A36: Ø 1000 mm < Ledningsnet ≤ Ø 1200 mm | B36: meter | C36: 75 | D36: 10 | E36: 9.58 | F36: =9.58 -> 9.58 | G36: -0.042 | H36: 0
A37: Ø 1200 mm < Ledningsnet ≤ Ø 1600 mm | B37: meter | C37: 75 | D37: 0 | E37: 0 | F37: 0 | G37: 0 | H37: 0
A38: Ledningsnet > Ø 1600 mm (rørbassiner og transportledninger) | B38: meter | C38: 75 | D38: 0 | E38: 0 | F38: 0 | G38: 0 | H38: 0
A39: Strømpeforing ≤ Ø 200 mm | B39: meter | C39: 50 | D39: 587.7798 | E39: 798.76 | F39: =798.76 -> 798.76 | G39: 0.3589442849 | H39: 0 | I39: Ved så små mængder vil selv mindre projekter betyder væsentlig afvigelse.
A40: Strømpeforing Ø 200 mm < Ledningsnet ≤ Ø 500 mm | B40: meter | C40: 50 | D40: 1713.3661 | E40: 1802.47 | F40: =1802.47 -> 1802.47 | G40: 0.05200517274 | H40: 0
A41: Strømpeforing Ø 500 mm < Ledningsnet ≤ Ø 800 mm | B41: meter | C41: 50 | D41: 277.2275 | E41: 230 | F41: =230.01 -> 230.01 | G41: -0.1703564762 | H41: 4.347826087e-05
A42: Strømpeforing Ø 800 mm < Ledningsnet ≤ Ø 1000 mm | B42: meter | C42: 50 | D42: 0 | E42: 0 | F42: 0 | G42: 0 | H42: 0
A43: Strømpeforing Ø 1000 mm < Ledningsnet ≤ Ø 1200 mm | B43: meter | C43: 50 | D43: 0 | E43: 0 | F43: 0 | G43: 0 | H43: 0
A44: Strømpeforing Ø 1200 mm < Ledningsnet ≤ Ø 1600 mm | B44: meter | C44: 50 | D44: 0 | E44: 0 | F44: 0 | G44: 0 | H44: 0
A45: Ledningsnet - Indre city
A46: Ledningsnet ≤ Ø 200 mm | B46: meter | C46: 75 | D46: 0 | E46: 0 | F46: 0 | G46: 0 | H46: 0
A47: Ø 200 mm < Ledningsnet ≤ Ø 500 mm | B47: meter | C47: 75 | D47: 0 | E47: 0 | F47: 0 | G47: 0 | H47: 0
A48: Ø 500 mm < Ledningsnet ≤ Ø 800 mm | B48: meter | C48: 75 | D48: 0 | E48: 0 | F48: 0 | G48: 0 | H48: 0
A49: Ø 800 mm < Ledningsnet ≤ Ø 1000 mm | B49: meter | C49: 75 | D49: 0 | E49: 0 | F49: 0 | G49: 0 | H49: 0
A50: Ø 1000 mm < Ledningsnet ≤ Ø 1200 mm | B50: meter | C50: 75 | D50: 0 | E50: 0 | F50: 0 | G50: 0 | H50: 0
A51: Ø 1200 mm < Ledningsnet ≤ Ø 1600 mm | B51: meter | C51: 75 | D51: 0 | E51: 0 | F51: 0 | G51: 0 | H51: 0
A52: Ledningsnet > Ø 1600 mm (rørbassiner og transportledninger) | B52: meter | C52: 75 | D52: 0 | E52: 0 | F52: 0 | G52: 0 | H52: 0
A53: Strømpeforing ≤ Ø 200 mm | B53: meter | C53: 50 | D53: 0 | E53: 0 | F53: 0 | G53: 0 | H53: 0
A54: Strømpeforing Ø 200 mm < Ledningsnet ≤ Ø 500 mm | B54: meter | C54: 50 | D54: 0 | E54: 0 | F54: 0 | G54: 0 | H54: 0
A55: Strømpeforing Ø 500 mm < Ledningsnet ≤ Ø 800 mm | B55: meter | C55: 50 | D55: 0 | E55: 0 | F55: 0 | G55: 0 | H55: 0
A56: Strømpeforing Ø 800 mm < Ledningsnet ≤ Ø 1000 mm | B56: meter | C56: 50 | D56: 0 | E56: 0 | F56: 0 | G56: 0 | H56: 0
A57: Strømpeforing Ø 1000 mm < Ledningsnet ≤ Ø 1200 mm | B57: meter | C57: 50 | D57: 0 | E57: 0 | F57: 0 | G57: 0 | H57: 0
A58: Strømpeforing Ø 1200 mm < Ledningsnet ≤ Ø 1600 mm | B58: meter | C58: 50 | D58: 0 | E58: 0 | F58: 0 | G58: 0 | H58: 0
A59: Brønde og stik, ledningsnet - Land
A60: Brønde | B60: stk. | C60: 75 | D60: 3055 | E60: =2524+542 -> 3066 | F60: =2677+542 -> 3219 | G60: 0.003600654664 | H60: 0.04990215264
A61: Stik | B61: stk. | C61: 75 | D61: 4720 | E61: 4720 | F61: 4720 | G61: 0 | H61: 0
A62: Brønde og stik, ledningsnet - By
A63: Brønde | B63: stk. | C63: 75 | D63: 8096 | E63: 8306 | F63: 8322 | G63: 0.02593873518 | H63: 0.001926318324
A64: Stik | B64: stk. | C64: 75 | D64: 9492 | E64: 9556 | F64: =E64+977-319 -> 10214 | G64: 0.006742520017 | H64: 0.06885726245
A65: Brønde og stik, ledningsnet - City
A66: Brønde | B66: stk. | C66: 75 | D66: 1219 | E66: 1221 | F66: 1221 | G66: 0.001640689089 | H66: 0
A67: Stik | B67: stk. | C67: 75 | D67: 2053 | E67: 2053 | F67: 2053 | G67: =IF(D67="",IF(E67>0,"Ny data",IF(E67="","",0)),IF(D67=0,IF(E67=0,0,"Ny data"),(E67-D67)/D67)) -> 0 | H67: =IF(E67="",IF(F67>0,"Ny data",IF(F67="","",0)),IF(E67=0,IF(F67=0,0,"Ny data"),(F67-E67)/E67)) -> 0
A68: Brønde og stik, ledningsnet - Indre city
A69: Brønde | B69: stk. | C69: 75 | D69: 0 | E69: 0 | F69: 0 | G69: 0 | H69: 0
A70: Stik | B70: stk. | C70: 75 | D70: 0 | E70: 0 | F70: 0 | G70: 0 | H70: 0
A71: Små pumpestationer (<100 l/s) inkl. SRO-anlæg - Land
A72: Tryksatte minipumpestationer (husstandssystemer) | B72: stk. | C72: 30 | D72: 712 | E72: 712 | F72: 714 | G72: 0 | H72: 0.002808988764
A73: Pumpestationer i brønde (< 6,25 m2), Konstruktioner | B73: stk. | C73: 50 | D73: 66 | E73: 66 | F73: 66 | G73: 0 | H73: 0
A74: Pumpestationer i brønde (< 6,25 m2), Mek/EL | B74: stk. | C74: 20 | D74: 66 | E74: 66 | F74: 66 | G74: 0 | H74: 0
A75: Pumpestationer i brønde (< 6,25 m2), SRO | B75: stk. | C75: 10 | D75: 66 | E75: 66 | F75: 66 | G75: 0 | H75: 0
A76: Pumpestationer m. overbygning (< 20 m2), Konstruktioner | B76: stk. | C76: 50 | D76: 9 | E76: 9 | F76: 9 | G76: 0 | H76: 0
A77: Pumpestationer m. overbygning (< 20 m2), Mek/EL | B77: stk. | C77: 20 | D77: 9 | E77: 9 | F77: 9 | G77: 0 | H77: 0
A78: Pumpestationer m. overbygning (< 20 m2), SRO | B78: stk. | C78: 10 | D78: 9 | E78: 9 | F78: 9 | G78: 0 | H78: 0
A79: Pumpestationer i underjordiske bygværker (<50 m2), Konstruktioner | B79: stk. | C79: 50 | D79: 1 | E79: 1 | F79: 1 | G79: 0 | H79: 0
A80: Pumpestationer i underjordiske bygværker (<50 m2), Mek/El | B80: stk. | C80: 20 | D80: 1 | E80: 1 | F80: 1 | G80: 0 | H80: 0
A81: Pumpestationer i underjordiske bygværker (<50 m2), SRO | B81: stk. | C81: 10 | D81: 1 | E81: 1 | F81: 1 | G81: 0 | H81: 0
A82: Små pumpestationer (<100 l/s) inkl. SRO-anlæg - By
A83: Tryksatte minipumpestationer (husstandssystemer) | B83: stk. | C83: 30 | D83: 13 | E83: 13 | F83: 13 | G83: 0 | H83: 0
A84: Pumpestationer i brønde (< 6,25 m2), Konstruktioner | B84: stk. | C84: 50 | D84: 47 | E84: 47 | F84: 51 | G84: 0 | H84: 0.08510638298
A85: Pumpestationer i brønde (< 6,25 m2), Mek/EL | B85: stk. | C85: 20 | D85: 47 | E85: 47 | F85: 51 | G85: 0 | H85: 0.08510638298
A86: Pumpestationer i brønde (< 6,25 m2), SRO | B86: stk. | C86: 10 | D86: 42 | E86: 42 | F86: 46 | G86: 0 | H86: 0.09523809524
A87: Pumpestationer m. overbygning (< 20 m2), Konstruktioner | B87: stk. | C87: 50 | D87: 3 | E87: 3 | F87: 3 | G87: 0 | H87: 0
A88: Pumpestationer m. overbygning (< 20 m2), Mek/EL | B88: stk. | C88: 20 | D88: 3 | E88: 3 | F88: 3 | G88: 0 | H88: 0
A89: Pumpestationer m. overbygning (< 20 m2), SRO | B89: stk. | C89: 10 | D89: 3 | E89: 3 | F89: 3 | G89: 0 | H89: 0
A90: Pumpestationer i underjordiske bygværker (<50 m2), Konstruktioner | B90: stk. | C90: 50 | D90: 3 | E90: 3 | F90: 3 | G90: 0 | H90: 0
A91: Pumpestationer i underjordiske bygværker (<50 m2), Mek/El | B91: stk. | C91: 20 | D91: 3 | E91: 3 | F91: 3 | G91: 0 | H91: 0
A92: Pumpestationer i underjordiske bygværker (<50 m2), SRO | B92: stk. | C92: 10 | D92: 3 | E92: 3 | F92: 3 | G92: 0 | H92: 0
A93: Små pumpestationer (<100 l/s) inkl. SRO-anlæg - City
A94: Tryksatte minipumpestationer (husstandssystemer) | B94: stk. | C94: 30 | D94: 0 | E94: 0 | F94: 0 | G94: 0 | H94: 0
A95: Pumpestationer i brønde (< 6,25 m2), Konstruktioner | B95: stk. | C95: 50 | D95: 1 | E95: 1 | F95: 1 | G95: 0 | H95: 0
A96: Pumpestationer i brønde (< 6,25 m2), Mek/EL | B96: stk. | C96: 20 | D96: 1 | E96: 1 | F96: 1 | G96: 0 | H96: 0
A97: Pumpestationer i brønde (< 6,25 m2), SRO | B97: stk. | C97: 10 | D97: 1 | E97: 1 | F97: 1 | G97: 0 | H97: 0
A98: Pumpestationer m. overbygning (< 20 m2), Konstruktioner | B98: stk. | C98: 50 | D98: 0 | E98: 0 | F98: 0 | G98: 0 | H98: 0
A99: Pumpestationer m. overbygning (< 20 m2), Mek/EL | B99: stk. | C99: 20 | D99: 0 | E99: 0 | F99: 0 | G99: 0 | H99: 0
A100: Pumpestationer m. overbygning (< 20 m2), SRO | B100: stk. | C100: 10 | D100: 0 | E100: 0 | F100: 0 | G100: 0 | H100: 0
A101: Pumpestationer i underjordiske bygværker (<50 m2), Konstruktioner | B101: stk. | C101: 50 | D101: 0 | E101: 0 | F101: 0 | G101: 0 | H101: 0
A102: Pumpestationer i underjordiske bygværker (<50 m2), Mek/El | B102: stk. | C102: 20 | D102: 0 | E102: 0 | F102: 0 | G102: 0 | H102: 0
A103: Pumpestationer i underjordiske bygværker (<50 m2), SRO | B103: stk. | C103: 10 | D103: 0 | E103: 0 | F103: 0 | G103: 0 | H103: 0
A104: Små pumpestationer (<100 l/s) inkl. SRO-anlæg - Indre city
A105: Tryksatte minipumpestationer (husstandssystemer) | B105: stk. | C105: 30 | D105: 0 | E105: 0 | F105: 0 | G105: 0 | H105: 0
A106: Pumpestationer i brønde (< 6,25 m2), Konstruktioner | B106: stk. | C106: 50 | D106: 0 | E106: 0 | F106: 0 | G106: 0 | H106: 0
A107: Pumpestationer i brønde (< 6,25 m2), Mek/EL | B107: stk. | C107: 20 | D107: 0 | E107: 0 | F107: 0 | G107: 0 | H107: 0
A108: Pumpestationer i brønde (< 6,25 m2), SRO | B108: stk. | C108: 10 | D108: 0 | E108: 0 | F108: 0 | G108: 0 | H108: 0
A109: Pumpestationer m. overbygning (< 20 m2), Konstruktioner | B109: stk. | C109: 50 | D109: 0 | E109: 0 | F109: 0 | G109: 0 | H109: 0
A110: Pumpestationer m. overbygning (< 20 m2), Mek/EL | B110: stk. | C110: 20 | D110: 0 | E110: 0 | F110: 0 | G110: 0 | H110: 0
A111: Pumpestationer m. overbygning (< 20 m2), SRO | B111: stk. | C111: 10 | D111: 0 | E111: 0 | F111: 0 | G111: 0 | H111: 0
A112: Pumpestationer i underjordiske bygværker (<50 m2), Konstruktioner | B112: stk. | C112: 50 | D112: 0 | E112: 0 | F112: 0 | G112: 0 | H112: 0
A113: Pumpestationer i underjordiske bygværker (<50 m2), Mek/El | B113: stk. | C113: 20 | D113: 0 | E113: 0 | F113: 0 | G113: 0 | H113: 0
A114: Pumpestationer i underjordiske bygværker (<50 m2), SRO | B114: stk. | C114: 10 | D114: 0 | E114: 0 | F114: 0 | G114: 0 | H114: 0
A115: Store pumpestationer: inkl. SRO-anlæg - Land
A116: Kælder | B116: m2 | C116: 75 | D116: 212 | E116: 212 | F116: 212 | G116: 0 | H116: 0
A117: Pumpeinstallation Miljøklasse A (100-300 l/s) - Mek/EL | B117: stk. | C117: 20 | D117: 2 | E117: 3 | F117: 3 | G117: 0.5 | H117: 0 | I117: små mængder, fører til store procentuelle afvigelser
A118: Pumpeinstallation Miljøklasse A (100-300 l/s) - SRO | B118: stk. | C118: 10 | D118: 2 | E118: 3 | F118: 3 | G118: 0.5 | H118: 0 | I118: små mængder, fører til store procentuelle afvigelser
A119: Pumpeinstallation Miljøklasse A (300-600 l/s) - Mek/EL | B119: stk. | C119: 20 | D119: 1 | E119: 1 | F119: 1 | G119: 0 | H119: 0
A120: Pumpeinstallation Miljøklasse A (300-600 l/s) - SRO | B120: stk. | C120: 10 | D120: 1 | E120: 1 | F120: 1 | G120: 0 | H120: 0
A121: Pumpeinstallation Miljøklasse A (600-1.000 l/s) - Mek/EL | B121: stk. | C121: 20 | D121: 0 | E121: 0 | F121: 0 | G121: 0 | H121: 0
A122: Pumpeinstallation Miljøklasse A (600-1.000 l/s) - SRO | B122: stk. | C122: 10 | D122: 0 | E122: 0 | F122: 0 | G122: 0 | H122: 0
A123: Pumpeinstallation Miljøklasse A (1.000-1.500 l/s) - Mek/EL | B123: stk. | C123: 20 | D123: 0 | E123: 0 | F123: 0 | G123: 0 | H123: 0
A124: Pumpeinstallation Miljøklasse A (1.000-1.500 l/s) - SRO | B124: stk. | C124: 10 | D124: 0 | E124: 0 | F124: 0 | G124: 0 | H124: 0
A125: Pumpeinstallation Miljøklasse B (100-300 l/s) - Mek/EL | B125: stk. | C125: 20 | D125: 0 | E125: 0 | F125: 0 | G125: 0 | H125: 0
A126: Pumpeinstallation Miljøklasse B (100-300 l/s) - SRO | B126: stk. | C126: 10 | D126: 0 | E126: 0 | F126: 0 | G126: 0 | H126: 0
A127: Pumpeinstallation Miljøklasse B (300-600 l/s) - Mek/EL | B127: stk. | C127: 20 | D127: 0 | E127: 0 | F127: 0 | G127: 0 | H127: 0
A128: Pumpeinstallation Miljøklasse B (300-600 l/s) - SRO | B128: stk. | C128: 10 | D128: 0 | E128: 0 | F128: 0 | G128: 0 | H128: 0
A129: Pumpeinstallation Miljøklasse B (600-1.000 l/s) - Mek/EL | B129: stk. | C129: 20 | D129: 0 | E129: 0 | F129: 0 | G129: 0 | H129: 0
A130: Pumpeinstallation Miljøklasse B (600-1.000 l/s) - SRO | B130: stk. | C130: 10 | D130: 0 | E130: 0 | F130: 0 | G130: 0 | H130: 0
A131: Pumpeinstallation Miljøklasse B (1.000-1.500 l/s) - Mek/EL | B131: stk. | C131: 20 | D131: 1 | E131: 1 | F131: 1 | G131: =IF(D131="",IF(E131>0,"Ny data",IF(E131="","",0)),IF(D131=0,IF(E131=0,0,"Ny data"),(E131-D131)/D131)) -> 0 | H131: =IF(E131="",IF(F131>0,"Ny data",IF(F131="","",0)),IF(E131=0,IF(F131=0,0,"Ny data"),(F131-E131)/E131)) -> 0
A132: Pumpeinstallation Miljøklasse B (1.000-1.500 l/s) - SRO | B132: stk. | C132: 10 | D132: 1 | E132: 1 | F132: 1 | G132: 0 | H132: 0
A133: Overbygning | B133: m2 | C133: 75 | D133: 212 | E133: 212 | F133: 212 | G133: 0 | H133: 0
A134: Store pumpestationer: inkl. SRO-anlæg - By
A135: Kælder | B135: m2 | C135: 75 | D135: 123 | E135: 123 | F135: 123 | G135: 0 | H135: 0
A136: Pumpeinstallation Miljøklasse A (100-300 l/s) - Mek/EL | B136: stk. | C136: 20 | D136: 5 | E136: 5 | F136: 4 | G136: 0 | H136: -0.2
A137: Pumpeinstallation Miljøklasse A (100-300 l/s) - SRO | B137: stk. | C137: 10 | D137: 5 | E137: 5 | F137: 4 | G137: 0 | H137: -0.2
A138: Pumpeinstallation Miljøklasse A (300-600 l/s) - Mek/EL | B138: stk. | C138: 20 | D138: 2 | E138: 2 | F138: 2 | G138: 0 | H138: 0
A139: Pumpeinstallation Miljøklasse A (300-600 l/s) - SRO | B139: stk. | C139: 10 | D139: 2 | E139: 2 | F139: 2 | G139: 0 | H139: 0
A140: Pumpeinstallation Miljøklasse A (600-1.000 l/s) - Mek/EL | B140: stk. | C140: 20 | D140: 1 | E140: 1 | F140: 1 | G140: 0 | H140: 0
A141: Pumpeinstallation Miljøklasse A (600-1.000 l/s) - SRO | B141: stk. | C141: 10 | D141: 1 | E141: 1 | F141: 1 | G141: 0 | H141: 0
A142: Pumpeinstallation Miljøklasse A (1.000-1.500 l/s) - Mek/EL | B142: stk. | C142: 20 | D142: 0 | E142: 0 | F142: 0 | G142: 0 | H142: 0
A143: Pumpeinstallation Miljøklasse A (1.000-1.500 l/s) - SRO | B143: stk. | C143: 10 | D143: 0 | E143: 0 | F143: 0 | G143: 0 | H143: 0
A144: Pumpeinstallation Miljøklasse B (100-300 l/s) - Mek/EL | B144: stk. | C144: 20 | D144: 0 | E144: 0 | F144: 0 | G144: 0 | H144: 0
A145: Pumpeinstallation Miljøklasse B (100-300 l/s) - SRO | B145: stk. | C145: 10 | D145: 0 | E145: 0 | F145: 0 | G145: 0 | H145: 0
A146: Pumpeinstallation Miljøklasse B (300-600 l/s) - Mek/EL | B146: stk. | C146: 20 | D146: 0 | E146: 0 | F146: 0 | G146: 0 | H146: 0
A147: Pumpeinstallation Miljøklasse B (300-600 l/s) - SRO | B147: stk. | C147: 10 | D147: 0 | E147: 0 | F147: 0 | G147: 0 | H147: 0
A148: Pumpeinstallation Miljøklasse B (600-1.000 l/s) - Mek/EL | B148: stk. | C148: 20 | D148: 0 | E148: 0 | F148: 0 | G148: 0 | H148: 0
A149: Pumpeinstallation Miljøklasse B (600-1.000 l/s) - SRO | B149: stk. | C149: 10 | D149: 0 | E149: 0 | F149: 0 | G149: 0 | H149: 0
A150: Pumpeinstallation Miljøklasse B (1.000-1.500 l/s) - Mek/EL | B150: stk. | C150: 20 | D150: 0 | E150: 0 | F150: 0 | G150: 0 | H150: 0
A151: Pumpeinstallation Miljøklasse B (1.000-1.500 l/s) - SRO | B151: stk. | C151: 10 | D151: 0 | E151: 0 | F151: 0 | G151: 0 | H151: 0
A152: Overbygning | B152: m2 | C152: 75 | D152: 97 | E152: 97 | F152: 97 | G152: 0 | H152: 0
A153: Store pumpestationer: inkl. SRO-anlæg - City
A154: Kælder | B154: m2 | C154: 75 | D154: 0 | E154: 0 | F154: 0 | G154: 0 | H154: 0
A155: Pumpeinstallation Miljøklasse A (100-300 l/s) - Mek/EL | B155: stk. | C155: 20 | D155: 1 | E155: 1 | F155: 1 | G155: 0 | H155: 0
A156: Pumpeinstallation Miljøklasse A (100-300 l/s) - SRO | B156: stk. | C156: 10 | D156: 1 | E156: 1 | F156: 1 | G156: 0 | H156: 0
A157: Pumpeinstallation Miljøklasse A (300-600 l/s) - Mek/EL | B157: stk. | C157: 20 | D157: 1 | E157: 1 | F157: 1 | G157: 0 | H157: 0
A158: Pumpeinstallation Miljøklasse A (300-600 l/s) - SRO | B158: stk. | C158: 10 | D158: 1 | E158: 1 | F158: 1 | G158: 0 | H158: 0
A159: Pumpeinstallation Miljøklasse A (600-1.000 l/s) - Mek/EL | B159: stk. | C159: 20 | D159: 0 | E159: 0 | F159: 0 | G159: 0 | H159: 0
A160: Pumpeinstallation Miljøklasse A (600-1.000 l/s) - SRO | B160: stk. | C160: 10 | D160: 0 | E160: 0 | F160: 0 | G160: 0 | H160: 0
A161: Pumpeinstallation Miljøklasse A (1.000-1.500 l/s) - Mek/EL | B161: stk. | C161: 20 | D161: 0 | E161: 0 | F161: 0 | G161: 0 | H161: 0
A162: Pumpeinstallation Miljøklasse A (1.000-1.500 l/s) - SRO | B162: stk. | C162: 10 | D162: 0 | E162: 0 | F162: 0 | G162: 0 | H162: 0
A163: Pumpeinstallation Miljøklasse B (100-300 l/s) - Mek/EL | B163: stk. | C163: 20 | D163: 0 | E163: 0 | F163: 0 | G163: 0 | H163: 0
A164: Pumpeinstallation Miljøklasse B (100-300 l/s) - SRO | B164: stk. | C164: 10 | D164: 0 | E164: 0 | F164: 0 | G164: 0 | H164: 0
A165: Pumpeinstallation Miljøklasse B (300-600 l/s) - Mek/EL | B165: stk. | C165: 20 | D165: 0 | E165: 0 | F165: 0 | G165: 0 | H165: 0
A166: Pumpeinstallation Miljøklasse B (300-600 l/s) - SRO | B166: stk. | C166: 10 | D166: 0 | E166: 0 | F166: 0 | G166: 0 | H166: 0
A167: Pumpeinstallation Miljøklasse B (600-1.000 l/s) - Mek/EL | B167: stk. | C167: 20 | D167: 0 | E167: 0 | F167: 0 | G167: 0 | H167: 0
A168: Pumpeinstallation Miljøklasse B (600-1.000 l/s) - SRO | B168: stk. | C168: 10 | D168: 0 | E168: 0 | F168: 0 | G168: 0 | H168: 0
A169: Pumpeinstallation Miljøklasse B (1.000-1.500 l/s) - Mek/EL | B169: stk. | C169: 20 | D169: 0 | E169: 0 | F169: 0 | G169: 0 | H169: 0
A170: Pumpeinstallation Miljøklasse B (1.000-1.500 l/s) - SRO | B170: stk. | C170: 10 | D170: 0 | E170: 0 | F170: 0 | G170: 0 | H170: 0
A171: Overbygning | B171: m2 | C171: 75 | D171: 0 | E171: 0 | F171: 0 | G171: 0 | H171: 0
A172: Store pumpestationer: inkl. SRO-anlæg - Indre city
A173: Kælder | B173: m2 | C173: 75 | D173: 0 | E173: 0 | F173: 0 | G173: 0 | H173: 0
A174: Pumpeinstallation Miljøklasse A (100-300 l/s) - Mek/EL | B174: stk. | C174: 20 | D174: 0 | E174: 0 | F174: 0 | G174: 0 | H174: 0
A175: Pumpeinstallation Miljøklasse A (100-300 l/s) - SRO | B175: stk. | C175: 10 | D175: 0 | E175: 0 | F175: 0 | G175: 0 | H175: 0
A176: Pumpeinstallation Miljøklasse A (300-600 l/s) - Mek/EL | B176: stk. | C176: 20 | D176: 0 | E176: 0 | F176: 0 | G176: 0 | H176: 0
A177: Pumpeinstallation Miljøklasse A (300-600 l/s) - SRO | B177: stk. | C177: 10 | D177: 0 | E177: 0 | F177: 0 | G177: 0 | H177: 0
A178: Pumpeinstallation Miljøklasse A (600-1.000 l/s) - Mek/EL | B178: stk. | C178: 20 | D178: 0 | E178: 0 | F178: 0 | G178: 0 | H178: 0
A179: Pumpeinstallation Miljøklasse A (600-1.000 l/s) - SRO | B179: stk. | C179: 10 | D179: 0 | E179: 0 | F179: 0 | G179: 0 | H179: 0
A180: Pumpeinstallation Miljøklasse A (1.000-1.500 l/s) - Mek/EL | B180: stk. | C180: 20 | D180: 0 | E180: 0 | F180: 0 | G180: 0 | H180: 0
A181: Pumpeinstallation Miljøklasse A (1.000-1.500 l/s) - SRO | B181: stk. | C181: 10 | D181: 0 | E181: 0 | F181: 0 | G181: 0 | H181: 0
A182: Pumpeinstallation Miljøklasse B (100-300 l/s) - Mek/EL | B182: stk. | C182: 20 | D182: 0 | E182: 0 | F182: 0 | G182: 0 | H182: 0
A183: Pumpeinstallation Miljøklasse B (100-300 l/s) - SRO | B183: stk. | C183: 10 | D183: 0 | E183: 0 | F183: 0 | G183: 0 | H183: 0
A184: Pumpeinstallation Miljøklasse B (300-600 l/s) - Mek/EL | B184: stk. | C184: 20 | D184: 0 | E184: 0 | F184: 0 | G184: 0 | H184: 0
A185: Pumpeinstallation Miljøklasse B (300-600 l/s) - SRO | B185: stk. | C185: 10 | D185: 0 | E185: 0 | F185: 0 | G185: 0 | H185: 0
A186: Pumpeinstallation Miljøklasse B (600-1.000 l/s) - Mek/EL | B186: stk. | C186: 20 | D186: 0 | E186: 0 | F186: 0 | G186: 0 | H186: 0
A187: Pumpeinstallation Miljøklasse B (600-1.000 l/s) - SRO | B187: stk. | C187: 10 | D187: 0 | E187: 0 | F187: 0 | G187: 0 | H187: 0
A188: Pumpeinstallation Miljøklasse B (1.000-1.500 l/s) - Mek/EL | B188: stk. | C188: 20 | D188: 0 | E188: 0 | F188: 0 | G188: 0 | H188: 0
A189: Pumpeinstallation Miljøklasse B (1.000-1.500 l/s) - SRO | B189: stk. | C189: 10 | D189: 0 | E189: 0 | F189: 0 | G189: 0 | H189: 0
A190: Overbygning | B190: m2 | C190: 75 | D190: 0 | E190: 0 | F190: 0 | G190: 0 | H190: 0
A191: Overløbsbygværker - Land
A192: Kælder (< 7 m2) | B192: stk. | C192: 75 | D192: 37 | E192: 38 | F192: 38 | G192: 0.02702702703 | H192: 0
A193: Kælder (7 - 20 m2) | B193: m2 | C193: 75 | D193: 2 | E193: 2 | F193: 2 | G193: 0 | H193: 0
A194: Kælder (20 - 30 m2) | B194: m2 | C194: 75 | D194: 0 | E194: 0 | F194: 0 | G194: 0 | H194: 0
A195: Installationer (mindre end 7 m2) | B195: stk. | C195: 20 | D195: 35 | E195: 35 | F195: 35 | G195: =IF(D195="",IF(E195>0,"Ny data",IF(E195="","",0)),IF(D195=0,IF(E195=0,0,"Ny data"),(E195-D195)/D195)) -> 0 | H195: =IF(E195="",IF(F195>0,"Ny data",IF(F195="","",0)),IF(E195=0,IF(F195=0,0,"Ny data"),(F195-E195)/E195)) -> 0
A196: Installationer, Miljøklasse A. (7-20 m2) - Mek/EL | B196: stk. | C196: 20 | D196: 0 | E196: 0 | F196: 0 | G196: 0 | H196: 0
A197: Installationer, Miljøklasse A. (7-20 m2) - SRO | B197: stk. | C197: 10 | D197: 0 | E197: 0 | F197: 0 | G197: 0 | H197: 0
A198: Installationer, Miljøklasse A. (20-30 m2) - Mek/EL | B198: stk. | C198: 20 | D198: 0 | E198: 0 | F198: 0 | G198: 0 | H198: 0
A199: Installationer, Miljøklasse A. (20-30 m2) - SRO | B199: stk. | C199: 10 | D199: 0 | E199: 0 | F199: 0 | G199: 0 | H199: 0
A200: Installationer, Miljøklasse B. (7-20 m2) - Mek/EL | B200: stk. | C200: 20 | D200: 2 | E200: 2 | F200: 2 | G200: 0 | H200: 0
A201: Installationer, Miljøklasse B. (7-20 m2) - SRO | B201: stk. | C201: 10 | D201: 2 | E201: 2 | F201: 2 | G201: 0 | H201: 0
... 117 more rows

Sheet Fællesfunktionsanlæg
A1: Fællesfunktionsanlæg | B1: Enhed | C1: Standard-levetid | D1: Samlet mængde per 31/12-2022 | E1: Samlet mængde per 31/12-2023 | F1: Samlet mængde per 31/12-2024 | G1: Afvigelse 2022-2023 | H1: Afvigelse 2023-2024 | I1: Bemærkninger
A3: Andre | G3: =IF(D3="",IF(E3>0,"Ny data",IF(E3="","",0)),IF(D3=0,IF(E3=0,0,"Ny data"),(E3-D3)/D3)) ->  | H3: =IF(E3="",IF(F3>0,"Ny data",IF(F3="","",0)),IF(E3=0,IF(F3=0,0,"Ny data"),(F3-E3)/E3)) -> 
A4: Administrationbygninger | B4: m2 | C4: 75 | D4: 0 | G4: 0
A5: Arbejdsplads og kontor | B5: stk. | C5: 5 | D5: 0 | G5: 0
A6: Køretøjer, personbil | B6: stk. | C6: 5 | D6: 0 | G6: 0
A7: Køretøjer, små lastvogne (< 3.500 kg.) | B7: stk. | C7: 5 | D7: 0 | G7: 0
A8: Køretøjer, store lastvogne (> 3.500 kg.) | B8: stk. | C8: 5 | D8: 0 | G8: 0
A9: Køretøjer, entreprenørmaskiner | B9: stk. | C9: 5 | D9: 0 | G9: 0
A10: Slamsugere | B10: stk. | C10: 5 | D10: 0 | G10: 0
A11: Værksteder, garager | B11: m2 | C11: 75 | D11: 0 | G11: 0
A12: Solcelleanlæg eksl. Inverter | B12: kWp | C12: 25 | D12: 0 | G12: 0
A13: Inverter til solcelleanlæg | B13: kWp | C13: 10 | D13: 0 | G13: 0
